Workbook

Sheet Macro-commandes (hidden)
A1: =#REF! ->  | C1: Administration communale de:
A3: Gestion informatique du document. | B3: Commandes :
A5: Cliquez sur la commande>>>
C7: Enregistré

Sheet Coordonnées
A1: Synthèse des Comptes | D1: Administration communale de | J1: SOMME-LEUZE | P1: Code INS | R1: 91120
P2: Exercice: | R2: =N27 -> 2022
A3: Modèle officiel généré par l'application eComptes © SPW Intérieur et Action Sociale | P3: Version: | R3: 1
E7: S Y N T H È S E des C O M P T E S
E11: Module informatisé de publication des comptes annuels
A17: Commune de : | H17: SOMME-LEUZE
A19: Adresse de l'administration: | H19: Rue du Centre, 1
H20: 5377 BAILLONVILLE
H21: sommeleuze.be
A23: Date d'arrêt du compte par le conseil: | H23: 17/04/2023
A25: Date d'approbation de la Tutelle: | H25: 13/07/2023
A27: Type document: | H27: Compte | L27: Exercice: | N27: 2022
A29: Directeur Général: | H29: Isabelle PICARD
A30: Tél: | H30: 086 32 21 22
A31: Fax: | H31: 086 32 33 38
A32: Email: | H32: isabelle.picard@sommeleuze.be
A34: Directeur Financier:
A35: Tél:
A36: Fax:
A37: Email:

Sheet Résultats
A1: =Coordonnées!A1 -> Synthèse des Comptes | D1: =Coordonnées!D1 -> Administration communale de | J1: =Coordonnées!J1 -> SOMME-LEUZE | P1: =Coordonnées!P1 -> Code INS | R1: =Coordonnées!R1 -> 91120
P2: =Coordonnées!P2 -> Exercice: | R2: =Coordonnées!R2 -> 2022
A3: =Coordonnées!A3 -> Modèle officiel généré par l'application eComptes © SPW Intérieur et Action Sociale | P3: =Coordonnées!P3 -> Version: | R3: =Coordonnées!R3 -> 1
H6: Evolution du résultat budgétaire ordinaire
H7: =Coordonnées!$H$27 -> Compte | K7: =Coordonnées!$H$27 -> Compte | N7: =Coordonnées!$H$27 -> Compte | Q7: =Coordonnées!$H$27 -> Compte | T7: =Coordonnées!$H$27 -> Compte
A8: Exercices: | H8: =K8-1 -> 2018 | K8: =N8-1 -> 2019 | N8: =Q8-1 -> 2020 | Q8: =T8-1 -> 2021 | T8: =R2 -> 2022
A9: Résultats Exercice Propre* | H9: ='Ordinaire GE'!H26-'Ordinaire GE'!H15 -> 606.28 | K9: ='Ordinaire GE'!K26-'Ordinaire GE'!K15 -> -161493.15 | N9: ='Ordinaire GE'!N26-'Ordinaire GE'!N15 -> -341055.69 | Q9: ='Ordinaire GE'!Q26-'Ordinaire GE'!Q15 -> 164898.83 | T9: ='Ordinaire GE'!T26-'Ordinaire GE'!T15 -> -194697.13
A10: Résultat global* (avec exercices antérieurs et prélèvements) | H10: ='Ordinaire GE'!H29-'Ordinaire GE'!H18 -> 563105.83 | K10: ='Ordinaire GE'!K29-'Ordinaire GE'!K18 -> 503901.67 | N10: ='Ordinaire GE'!N29-'Ordinaire GE'!N18 -> 183908.55 | Q10: ='Ordinaire GE'!Q29-'Ordinaire GE'!Q18 -> 229820.74 | T10: ='Ordinaire GE'!T29-'Ordinaire GE'!T18 -> 328210.86
A11: * Montant arrondi à l'euro

Sheet Ordinaire GE
A1: =Coordonnées!A1 -> Synthèse des Comptes | D1: =Coordonnées!D1 -> Administration communale de | J1: =Coordonnées!J1 -> SOMME-LEUZE | P1: =Coordonnées!P1 -> Code INS | R1: =Coordonnées!R1 -> 91120
P2: =Coordonnées!P2 -> Exercice: | R2: =Coordonnées!R2 -> 2022
A3: =Coordonnées!A3 -> Modèle officiel généré par l'application eComptes © SPW Intérieur et Action Sociale | P3: =Coordonnées!P3 -> Version: | R3: =Coordonnées!R3 -> 1
H6: Ventilation économique des dépenses et des recettes ordinaires
H7: =Coordonnées!$H$27 -> Compte | K7: =Coordonnées!$H$27 -> Compte | N7: =Coordonnées!$H$27 -> Compte | Q7: =Coordonnées!$H$27 -> Compte | T7: =Coordonnées!$H$27 -> Compte
H8: Dépenses ordinaires (engagements actés aux comptes)
A9: Exercices: | H9: =K9-1 -> 2018 | K9: =N9-1 -> 2019 | N9: =Q9-1 -> 2020 | Q9: =T9-1 -> 2021 | T9: =R2 -> 2022
A10: Personnel | H10: 2816309.23 | I10: 5512664.26 | J10: 5512664.26 | K10: 2856691.08 | L10: 5512664.26 | M10: 5512664.26 | N10: 3001783.19 | O10: 5512664.26 | P10: 5512664.26 | Q10: 3154245.87 | R10: 5512664.26 | S10: 5512664.26 | T10: 3413020.64 | U10: 5512664.26 | V10: 5512664.26
A11: Fonctionnement | H11: 1438969.26 | I11: 2726342.74 | J11: 2726342.74 | K11: 1535033.16 | L11: 2726342.74 | M11: 2726342.74 | N11: 1428644.99 | O11: 2726342.74 | P11: 2726342.74 | Q11: 1533670.34 | R11: 2726342.74 | S11: 2726342.74 | T11: 1728688.43 | U11: 2726342.74 | V11: 2726342.74
A12: Transferts | H12: 1625561.36 | I12: 4264832.04 | J12: 4264832.04 | K12: 1721062.01 | L12: 4264832.04 | M12: 4264832.04 | N12: 1721696.81 | O12: 4264832.04 | P12: 4264832.04 | Q12: 1680801.44 | R12: 4264832.04 | S12: 4264832.04 | T12: 1779660.64 | U12: 4264832.04 | V12: 4264832.04
A13: Dette | H13: 757151.57 | I13: 41563.69 | J13: 41563.69 | K13: 834052.04 | L13: 41563.69 | M13: 41563.69 | N13: 862623.62 | O13: 41563.69 | P13: 41563.69 | Q13: 865100.19 | R13: 41563.69 | S13: 41563.69 | T13: 929997.45 | U13: 41563.69 | V13: 41563.69
A14: Prélèvements (hors 060) | H14: 427000 | I14: 0 | J14: 0 | K14: 381000 | L14: 0 | M14: 0 | N14: 550000 | O14: 0 | P14: 0 | Q14: 0 | R14: 0 | S14: 0 | T14: 380000 | U14: 0 | V14: 0
A15: Total (exercice propre)* | H15: =SUM(H10:H14) -> 7064991.42 | K15: =SUM(K10:K14) -> 7327838.29 | N15: =SUM(N10:N14) -> 7564748.61 | Q15: =SUM(Q10:Q14) -> 7233817.84 | T15: =SUM(T10:T14) -> 8231367.16
A16: Exercices antérieurs | H16: 112824.13 | I16: 1521059.02 | J16: 2351270.66 | K16: 84160.25 | L16: 1659060.83 | M16: 1521059.02 | N16: 168107.83 | O16: 2230351.92 | P16: 1659060.83 | Q16: 220568.35 | R16: 2351270.66 | S16: 2230351.92 | T16: 11736.43 | U16: 2351270.66 | V16: 2230351.92
A17: Prélèvements | H17: 0 | I17: 1192323.53 | J17: 824300.6 | K17: 0 | L17: 4295659.86 | M17: 1192323.53 | N17: 0 | O17: 1045347.08 | P17: 4295659.86 | Q17: 0 | R17: 824300.6 | S17: 1045347.08 | T17: 0 | U17: 824300.6 | V17: 1045347.08
A18: Total général* | H18: =SUM(H15:H17) -> 7177815.55 | K18: =SUM(K15:K17) -> 7411998.54 | N18: =SUM(N15:N17) -> 7732856.44 | Q18: =SUM(Q15:Q17) -> 7454386.19 | T18: =SUM(T15:T17) -> 8243103.59
A19: * Montant arrondi à l'euro
H20: Recettes ordinaires (Droits actés aux comptes)
A21: Exercices: | H21: =K21-1 -> 2018 | K21: =N21-1 -> 2019 | N21: =Q21-1 -> 2020 | Q21: =T21-1 -> 2021 | T21: =R2 -> 2022
A22: Prestation | H22: 652733.86 | I22: 373432.17 | J22: 697745.74 | K22: 494383.17 | L22: 373432.17 | M22: 697745.74 | N22: 362440.81 | O22: 373432.17 | P22: 697745.74 | Q22: 447053.58 | R22: 373432.17 | S22: 697745.74 | T22: 499570.96 | U22: 373432.17 | V22: 697745.74
A23: Transferts | H23: 6381282.29 | I23: 12728583.2 | J23: 13240574.68 | K23: 6640378.82 | L23: 12728583.2 | M23: 13240574.68 | N23: 6829807.56 | O23: 12728583.2 | P23: 13240574.68 | Q23: 6900026.61 | R23: 12728583.2 | S23: 13240574.68 | T23: 7504615.93 | U23: 12728583.2 | V23: 13240574.68
A24: Dette | H24: 31581.55 | I24: 548784.99 | J24: 408005.67 | K24: 31583.15 | L24: 548784.99 | M24: 408005.67 | N24: 31444.55 | O24: 548784.99 | P24: 408005.67 | Q24: 51636.48 | R24: 548784.99 | S24: 408005.67 | T24: 32483.14 | U24: 548784.99 | V24: 408005.67
A25: Prélèvements | H25: 0 | I25: 0 | J25: 0 | K25: 0 | L25: 0 | M25: 0 | N25: 0 | O25: 0 | P25: 0 | Q25: 0 | R25: 0 | S25: 0 | T25: 0 | U25: 0 | V25: 0
A26: Total (exercice propre)* | H26: =SUM(H22:H25) -> 7065597.7 | K26: =SUM(K22:K25) -> 7166345.14 | N26: =SUM(N22:N25) -> 7223692.92 | Q26: =SUM(Q22:Q25) -> 7398716.67 | T26: =SUM(T22:T25) -> 8036670.03
A27: Exercices antérieurs | H27: 675323.68 | I27: 6001218.288 | J27: 5811470.083 | K27: 749555.07 | L27: 6001218.288 | M27: 5811470.083 | N27: 693072.07 | O27: 6001218.288 | P27: 5811470.083 | Q27: 285490.26 | R27: 6001218.288 | S27: 5811470.083 | T27: 534644.42 | U27: 6001218.288 | V27: 5811470.083
A28: Prélèvements | H28: 0 | I28: 0 | J28: 0 | K28: 0 | L28: 0 | M28: 0 | N28: 0 | O28: 0 | P28: 0 | Q28: 0 | R28: 0 | S28: 0 | T28: 0 | U28: 0 | V28: 0
A29: Total général* | H29: =SUM(H26:H28) -> 7740921.38 | K29: =SUM(K26:K28) -> 7915900.21 | N29: =SUM(N26:N28) -> 7916764.99 | Q29: =SUM(Q26:Q28) -> 7684206.93 | T29: =SUM(T26:T28) -> 8571314.45
A30: * Montant arrondi à l'euro

Sheet Extraordinaire GE
A1: =Coordonnées!A1 -> Synthèse des Comptes | D1: =Coordonnées!D1 -> Administration communale de | J1: =Coordonnées!J1 -> SOMME-LEUZE | P1: =Coordonnées!P1 -> Code INS | R1: =Coordonnées!R1 -> 91120
P2: =Coordonnées!P2 -> Exercice: | R2: =Coordonnées!R2 -> 2022
A3: =Coordonnées!A3 -> Modèle officiel généré par l'application eComptes © SPW Intérieur et Action Sociale | P3: =Coordonnées!P3 -> Version: | R3: =Coordonnées!R3 -> 1
H6: Ventilation économique des dépenses et des recettes extraordinaires
H7: =Coordonnées!$H$27 -> Compte | K7: =Coordonnées!$H$27 -> Compte | N7: =Coordonnées!$H$27 -> Compte | Q7: =Coordonnées!$H$27 -> Compte | T7: =Coordonnées!$H$27 -> Compte
H8: Dépenses extraordinaires (engagements actés aux comptes)
A9: Exercices: | H9: =K9-1 -> 2018 | K9: =N9-1 -> 2019 | N9: =Q9-1 -> 2020 | Q9: =T9-1 -> 2021 | T9: =R2 -> 2022
A10: Transferts | H10: 0 | I10: 5512664.26 | J10: 5512664.26 | K10: 96276.58 | L10: 5512664.26 | M10: 5512664.26 | N10: 19529.63 | O10: 5512664.26 | P10: 5512664.26 | Q10: 0 | R10: 5512664.26 | S10: 5512664.26 | T10: 0 | U10: 5512664.26 | V10: 5512664.26
A11: Investissements | H11: 2466591.88 | I11: 2726342.74 | J11: 2726342.74 | K11: 531478.89 | L11: 2726342.74 | M11: 2726342.74 | N11: 789309.24 | O11: 2726342.74 | P11: 2726342.74 | Q11: 1962611.54 | R11: 2726342.74 | S11: 2726342.74 | T11: 1452881.46 | U11: 2726342.74 | V11: 2726342.74
A12: Dette | H12: 23118.61 | I12: 4264832.04 | J12: 4264832.04 | K12: 81243.61 | L12: 4264832.04 | M12: 4264832.04 | N12: 23118.61 | O12: 4264832.04 | P12: 4264832.04 | Q12: 23118.61 | R12: 4264832.04 | S12: 4264832.04 | T12: 23118.61 | U12: 4264832.04 | V12: 4264832.04
A13: Prélèvements | H13: 0 | I13: 41563.69 | J13: 41563.69 | K13: 0 | L13: 41563.69 | M13: 41563.69 | N13: 0 | O13: 41563.69 | P13: 41563.69 | Q13: 0 | R13: 41563.69 | S13: 41563.69 | T13: 0 | U13: 41563.69 | V13: 41563.69
H14: 0 | I14: 0 | J14: 0 | K14: 0 | L14: 0 | M14: 0 | N14: 0 | O14: 0 | P14: 0 | Q14: 0 | R14: 0 | S14: 0 | T14: 0 | U14: 0 | V14: 0
A15: Total (exercice propre)* | H15: =SUM(H10:H14) -> 2489710.49 | K15: =SUM(K10:K14) -> 708999.08 | N15: =SUM(N10:N14) -> 831957.48 | Q15: =SUM(Q10:Q14) -> 1985730.15 | T15: =SUM(T10:T14) -> 1476000.07
A16: Exercices antérieurs | H16: 894328.94 | I16: 1521059.02 | J16: 2351270.66 | K16: 2193854.78 | L16: 1659060.83 | M16: 1521059.02 | N16: 674035.14 | O16: 2230351.92 | P16: 1659060.83 | Q16: 1223999.64 | R16: 2351270.66 | S16: 2230351.92 | T16: 1379828.07 | U16: 2351270.66 | V16: 2230351.92
A17: Prélèvements | H17: 349124.75 | I17: 1192323.53 | J17: 824300.6 | K17: 742537.07 | L17: 4295659.86 | M17: 1192323.53 | N17: 199992.55 | O17: 1045347.08 | P17: 4295659.86 | Q17: 75075.97 | R17: 824300.6 | S17: 1045347.08 | T17: 1073436.8 | U17: 824300.6 | V17: 1045347.08
A18: Total général* | H18: =SUM(H15:H17) -> 3733164.18 | K18: =SUM(K15:K17) -> 3645390.93 | N18: =SUM(N15:N17) -> 1705985.17 | Q18: =SUM(Q15:Q17) -> 3284805.76 | T18: =SUM(T15:T17) -> 3929264.94
A19: * Montant arrondi à l'euro
H20: Recettes extraordinaires (Droits actés aux comptes)
A21: Exercices: | H21: =K21-1 -> 2018 | K21: =N21-1 -> 2019 | N21: =Q21-1 -> 2020 | Q21: =T21-1 -> 2021 | T21: =R2 -> 2022
A22: Transferts | H22: 854826.77 | I22: 373432.17 | J22: 697745.74 | K22: 712474.26 | L22: 365967.42 | M22: 373432.17 | N22: 94712.6 | O22: 414709.37 | P22: 365967.42 | Q22: 194009.34 | R22: 697745.74 | S22: 414709.37 | T22: 1006908.59 | U22: 557211.56 | V22: 577850.16
A23: Investissements | H23: 19950 | I23: 12728583.2 | J23: 13240574.68 | K23: 41875 | L23: 12120371.99 | M23: 12728583.2 | N23: 26649.76 | O23: 12941517.73 | P23: 12120371.99 | Q23: 14838.97 | R23: 13240574.68 | S23: 12941517.73 | T23: 119542.76 | U23: 13289627 | V23: 13396094.26
A24: Dette | H24: 79650.82 | I24: 548784.99 | J24: 408005.67 | K24: 912459.29 | L24: 536819.05 | M24: 548784.99 | N24: 0 | O24: 344975.81 | P24: 536819.05 | Q24: 2042032.96 | R24: 408005.67 | S24: 344975.81 | T24: 0 | U24: 128208.3867 | V24: 26303.79667
A25: Prélèvements | H25: 0 | I25: 0 | J25: 0 | K25: 0 | L25: 0 | M25: 0 | N25: 0 | O25: 0 | P25: 0 | Q25: 2062.81 | R25: 0 | S25: 0 | T25: 0 | U25: 0 | V25: 0
A26: Total (exercice propre)* | H26: =SUM(H22:H25) -> 954427.59 | K26: =SUM(K22:K25) -> 1666808.55 | N26: =SUM(N22:N25) -> 121362.36 | Q26: =SUM(Q22:Q25) -> 2252944.08 | T26: =SUM(T22:T25) -> 1126451.35
A27: Exercices antérieurs | H27: 806629 | K27: 992009.41 | L27: 10122961.63 | M27: 6628334.56 | N27: 203779.2 | O27: 6248838.15 | P27: 10122961.63 | Q27: 0 | R27: 6834216 | S27: 6248838.15 | T27: 1062085.35 | U27: 6001218.288 | V27: 5811470.083
A28: Prélèvements | H28: 711811.78 | I28: 0 | J28: 0 | K28: 416244.84 | L28: 0 | M28: 0 | N28: 111276.83 | O28: 0 | P28: 0 | Q28: 734897.16 | R28: 0 | S28: 0 | T28: 78453.99 | U28: 0 | V28: 0
A29: Total général* | H29: =SUM(H26:H28) -> 2472868.37 | K29: =SUM(K26:K28) -> 3075062.8 | N29: =SUM(N26:N28) -> 436418.39 | Q29: =SUM(Q26:Q28) -> 2987841.24 | T29: =SUM(T26:T28) -> 2266990.69
A30: * Montant arrondi à l'euro

Sheet DO fonctions
A1: =Coordonnées!A1 -> Synthèse des Comptes | E1: Administration communale de: | G1: =Coordonnées!J1 -> SOMME-LEUZE | I1: Code INS: | J1: =Coordonnées!R1 -> 91120
I2: Exercice: | J2: =Coordonnées!R2 -> 2022
A3: =Coordonnées!A3 -> Modèle officiel généré par l'application eComptes © SPW Intérieur et Action Sociale | I3: version: | J3: =Coordonnées!R3 -> 1
E4: Ventilation fonctionnelle
E5: Evolution des dépenses ordinaires (exercice propre)
E6: =Coordonnées!$H$27 -> Compte | F6: =Coordonnées!$H$27 -> Compte | G6: =Coordonnées!$H$27 -> Compte | H6: =Coordonnées!$H$27 -> Compte | I6: =Coordonnées!$H$27 -> Compte
E7: =F7-1 -> 2018 | F7: =G7-1 -> 2019 | G7: =H7-1 -> 2020 | H7: =I7-1 -> 2021 | I7: =J2 -> 2022
A8: 0 Recettes et dépenses générales | E8: 46448.88 | F8: 43453.11 | G8: 41977.46 | H8: 39626.74 | I8: 43498.45
A9: 1 Administration générale | E9: 1774152.74 | F9: 1771207.47 | G9: 1871738.23 | H9: 1931230.17 | I9: 2475764.46
A10: 3 Sécurité | E10: 726728.5 | F10: 933355 | G10: 703464.75 | H10: 674196.27 | I10: 674196.27
A11: 4 Voiries-communications | E11: 1856107.14 | F11: 1581623.59 | G11: 2173167.95 | H11: 1704779.09 | I11: 1864372.13
A12: 5 Industrie - commerce | E12: 39487.04 | F12: 55045.98 | G12: 47709.87 | H12: 46200.66 | I12: 50848.48
A13: 6 Sylviculture- Agriculture | E13: 16928.9 | F13: 27922.45 | G13: 28090.87 | H13: 14794.6 | I13: 14247.55
A14: 70>75 Enseignement | E14: 762324.42 | F14: 793113.5 | G14: 727904.9 | H14: 760718.54 | I14: 931158.12
A15: 76>77 Culture et sports | E15: 339393.78 | F15: 381794.29 | G15: 357801.36 | H15: 435241.45 | I15: 431786.89
A16: 78 Radio, télévision, presse | E16: 0 | F16: 0 | G16: 0 | H16: 0 | I16: 0
A17: 79 Culte | E17: 92999.69 | F17: 95089.48 | G17: 97400.53 | H17: 95703.15 | I17: 75715.17
A18: 80>86 Action Sociale | E18: 714238.43 | F18: 983791.17 | G18: 747629.35 | H18: 775638.05 | I18: 895901.37
A19: 87 Santé publique et hygiène | E19: 562550.39 | F19: 516226.43 | G19: 619129.27 | H19: 621982.63 | I19: 631328.17
A20: 90>92 Logement | E20: 127123.69 | F20: 138710.53 | G20: 142229.73 | H20: 127206.46 | I20: 136052.81
A21: 93 Aménagement du territoire | E21: 6507.82 | F21: 6505.29 | G21: 6504.34 | H21: 6500.03 | I21: 6497.29

Sheet RO fonctions
A1: =Coordonnées!A1 -> Synthèse des Comptes | E1: Administration communale de: | G1: =Coordonnées!J1 -> SOMME-LEUZE | I1: Code INS: | J1: =Coordonnées!R1 -> 91120
I2: Exercice: | J2: =Coordonnées!R2 -> 2022
A3: =Coordonnées!A3 -> Modèle officiel généré par l'application eComptes © SPW Intérieur et Action Sociale | I3: version: | J3: =Coordonnées!R3 -> 1
E4: Ventilation fonctionnelle
E5: Evolution des recettes ordinaires (exercice propre)
E6: =Coordonnées!$H$27 -> Compte | F6: =Coordonnées!$H$27 -> Compte | G6: =Coordonnées!$H$27 -> Compte | H6: =Coordonnées!$H$27 -> Compte | I6: =Coordonnées!$H$27 -> Compte
E7: =F7-1 -> 2018 | F7: =G7-1 -> 2019 | G7: =H7-1 -> 2020 | H7: =I7-1 -> 2021 | I7: =J2 -> 2022
A8: 0 Recettes et dépenses générales | E8: 5857170.72 | F8: 6118410.02 | G8: 6187152.51 | H8: 5842477.4 | I8: 7076424.12
A9: 1 Administration générale | E9: 380886.6 | F9: 383723.36 | G9: 411258.37 | H9: 449597.25 | I9: 224067.5
A10: 3 Sécurité | E10: 0 | F10: 0 | G10: 6000 | H10: 6038.47 | I10: 6352.81
A11: 4 Voiries-communications | E11: 215823.55 | F11: 268993.36 | G11: 274260.65 | H11: 295322.34 | I11: 103410.24
A12: 5 Industrie - commerce | E12: 197310.48 | F12: 114294.6 | G12: 115976.97 | H12: 135334.69 | I12: 120405.98
A13: 6 Sylviculture- Agriculture | E13: 307889.57 | F13: 233588.76 | G13: 103624.52 | H13: 126067.79 | I13: 163658.3
A14: 70>75 Enseignement | E14: 466611.93 | F14: 470190.4 | G14: 470648.89 | H14: 482724.82 | I14: 350921.98
A15: 76>77 Culture et sports | E15: 145853.4 | F15: 115718.99 | G15: 156699.22 | H15: 199649.75 | I15: 180512.29
A16: 78 Radio, télévision, presse | E16: 0 | F16: 0 | G16: 0 | H16: 0 | I16: 0
A17: 79 Culte | E17: 1358.78 | F17: 0 | G17: 3894.04 | H17: 0 | I17: 4957.96
A18: 80>86 Action Sociale | E18: 39932.72 | F18: 35059.77 | G18: 0 | H18: 0 | I18: 0
A19: 87 Santé publique et hygiène | E19: 35528.88 | F19: 31800.73 | G19: 35810.4 | H19: 56249.07 | I19: 20320.61
A20: 90>92 Logement | E20: 41179.2 | F20: 34324.45 | G20: 57531.11 | H20: 70475.65 | I20: 30000
A21: 93 Aménagement du territoire | E21: 7500 | F21: 7500 | G21: 7500 | H21: 7500 | I21: 5878.46

Sheet DE fonctions
A1: =Coordonnées!A1 -> Synthèse des Comptes | E1: Administration communale de: | G1: =Coordonnées!J1 -> SOMME-LEUZE | I1: Code INS: | J1: =Coordonnées!R1 -> 91120
I2: Exercice: | J2: =Coordonnées!R2 -> 2022
A3: =Coordonnées!A3 -> Modèle officiel généré par l'application eComptes © SPW Intérieur et Action Sociale | I3: version: | J3: =Coordonnées!R3 -> 1
E4: Ventilation fonctionnelle
E5: Evolution des dépenses extraordinaires (exercice propre)
E6: =Coordonnées!$H$27 -> Compte | F6: =Coordonnées!$H$27 -> Compte | G6: =Coordonnées!$H$27 -> Compte | H6: =Coordonnées!$H$27 -> Compte | I6: =Coordonnées!$H$27 -> Compte
E7: =F7-1 -> 2018 | F7: =G7-1 -> 2019 | G7: =H7-1 -> 2020 | H7: =I7-1 -> 2021 | I7: =J2 -> 2022
A8: 0 Recettes et dépenses générales | E8: 349124.75 | F8: 838813.65 | G8: 199992.55 | H8: 979870.16 | I8: 1073436.8
A9: 1 Administration générale | E9: 10008.74 | F9: 98616.74 | G9: 44634.71 | H9: 63585.2 | I9: 606618.32
A10: 3 Sécurité | E10: 0 | F10: 0 | G10: 0 | H10: 0 | I10: 0
A11: 4 Voiries-communications | E11: 1532440.53 | F11: 154860.35 | G11: 642721.83 | H11: 1476632.18 | I11: 723932.47
A12: 5 Industrie - commerce | E12: 0 | F12: 13800 | G12: 16980.01 | H12: 5564.2 | I12: 0
A13: 6 Sylviculture- Agriculture | E13: 10661.48 | F13: 2098.8 | G13: 734.58 | H13: 7072.36 | I13: 0
A14: 70>75 Enseignement | E14: 56150.15 | F14: 33244.67 | G14: 5163.8 | H14: 70001.13 | I14: 32925.08
A15: 76>77 Culture et sports | E15: 765135.93 | F15: 55588.12 | G15: 0 | H15: 281264 | I15: 76319.82
A16: 78 Radio, télévision, presse | E16: 0 | F16: 0 | G16: 0 | H16: 0 | I16: 0
A17: 79 Culte | E17: 34108.38 | F17: 52726.96 | G17: 63482.11 | H17: 51855.32 | I17: 2658.98
A18: 80>86 Action Sociale | E18: 0 | F18: 0 | G18: 0 | H18: 0 | I18: 0
A19: 87 Santé publique et hygiène | E19: 46965.28 | F19: 86519.68 | G19: 46003.11 | H19: 23118.61 | I19: 27583.29
A20: 90>92 Logement | E20: 34240 | F20: 115267.18 | G20: 12237.33 | H20: 6637.15 | I20: 5962.11
A21: 93 Aménagement du territoire | E21: 0 | F21: 0 | G21: 0 | H21: 0 | I21: 0

Sheet RE fonctions
A1: =Coordonnées!A1 -> Synthèse des Comptes | E1: Administration communale de: | G1: =Coordonnées!J1 -> SOMME-LEUZE | I1: Code INS: | J1: =Coordonnées!R1 -> 91120
I2: Exercice: | J2: =Coordonnées!R2 -> 2022
A3: =Coordonnées!A3 -> Modèle officiel généré par l'application eComptes © SPW Intérieur et Action Sociale | I3: version: | J3: =Coordonnées!R3 -> 1
E4: Ventilation fonctionnelle
E5: Evolution des recettes extraordinaires (exercice propre)
E6: =Coordonnées!$H$27 -> Compte | F6: =Coordonnées!$H$27 -> Compte | G6: =Coordonnées!$H$27 -> Compte | H6: =Coordonnées!$H$27 -> Compte | I6: =Coordonnées!$H$27 -> Compte
E7: =F7-1 -> 2018 | F7: =G7-1 -> 2019 | G7: =H7-1 -> 2020 | H7: =I7-1 -> 2021 | I7: =J2 -> 2022
A8: 0 Recettes et dépenses générales | E8: 1633224.2 | F8: 2094461.25 | G8: 315056.03 | H8: 734897.16 | I8: 1826866.98
A9: 1 Administration générale | E9: 74404.76 | F9: 34800 | G9: 0 | H9: 142645.2 | I9: 85625.4
A10: 3 Sécurité | E10: 0 | F10: 0 | G10: 0 | H10: 0 | I10: 0
A11: 4 Voiries-communications | E11: 205671.16 | F11: 625176.69 | G11: 26520 | H11: 1703409.65 | I11: 282294.44
A12: 5 Industrie - commerce | E12: 0 | F12: 13800 | G12: 0 | H12: 16980.01 | I12: 0
A13: 6 Sylviculture- Agriculture | E13: 0 | F13: 0 | G13: 0 | H13: 5500 | I13: 0
A14: 70>75 Enseignement | E14: 10000 | F14: 26267.26 | G14: 0 | H14: 14427.7 | I14: 36414.51
A15: 76>77 Culture et sports | E15: 527777.83 | F15: 250000 | G15: 0 | H15: 251022.45 | I15: 0
A16: 78 Radio, télévision, presse | E16: 0 | F16: 0 | G16: 0 | H16: 0 | I16: 0
A17: 79 Culte | E17: 0 | F17: 25482.6 | G17: 38463.89 | H17: 57342.07 | I17: 0
A18: 80>86 Action Sociale | E18: 0 | F18: 0 | G18: 0 | H18: 0 | I18: 0
A19: 87 Santé publique et hygiène | E19: 0 | F19: 0 | G19: 7500 | H19: 59745 | I19: 0
A20: 90>92 Logement | E20: 21790.42 | F20: 5075 | G20: 48878.47 | H20: 1872 | I20: 35789.36
A21: 93 Aménagement du territoire | E21: 0 | F21: 0 | G21: 0 | H21: 0 | I21: 0

Sheet Actif
A1: =Coordonnées!A1 -> Synthèse des Comptes | C1: =Coordonnées!D1 -> Administration communale de | D1: =Coordonnées!J1 -> SOMME-LEUZE | G1: =Coordonnées!P1 -> Code INS | I1: =Coordonnées!R1 -> 91120
G2: =Coordonnées!P2 -> Exercice: | I2: =Coordonnées!R2 -> 2022
A3: =Coordonnées!A3 -> Modèle officiel généré par l'application eComptes © SPW Intérieur et Action Sociale | G3: =Coordonnées!P3 -> Version: | I3: =Coordonnées!R3 -> 1
A6: B I L A N | E6: Codes | F6: =I2 -> 2022 | H6: =F6-1 -> 2021
C8: A C T I F
A10: ACTIFS IMMOBILISES | E10: 21/28 | F10: =F12+F14+F29+F35+F39 -> 33618582.32 | H10: =H12+H14+H29+H35+H39 -> 32151106.78
A12: I . | B12: Immobilisations incorporelles | E12: 21 | F12: 5926.7 | H12: 0
A14: II. | B14: Immobilisations corporelles | E14: 22/26 | F14: =SUM(F16:F27) -> 30874646.38 | H14: =SUM(H16:H27) -> 29821889.91
B15: Patrimoine immobilier
B16: A. | C16: Terres et terrains non bâtis ............................................................................... | E16: 220 | F16: 4845085.16 | H16: 4572537.46
B17: B. | C17: Constructions et leurs terrains ........................................................................... | E17: 221 | F17: 13636800.58 | H17: 13031988.67
B18: C. | C18: Voiries ......................................................................................................................... | E18: 223 | F18: 10226595.76 | H18: 8053921.55
B19: D. | C19: Ouvrages d'art ............................................................................................................. | E19: 224 | F19: 154620.89 | H19: 162986.4
B20: E. | C20: Cours et plans d'eau ...................................................................... | E20: 226 | F20: 0 | H20: 0
B21: Patrimoine mobilier
B22: F. | C22: Mobilier, matériel, équipements et signalisation routière............................................................. | E22: 230/3 | F22: 506012.44 | H22: 618680.9
B23: G. | C23: Patrimoine artistique et mobilier divers ................................................................. | E23: 234 | F23: 0 | H23: 0
B24: Autres immobilisations corporelles
B25: H. | C25: Immobilisations en cours d'exécution ................................................................... | E25: 24 | F25: 1505531.55 | H25: 3381774.93
B26: I. | C26: Droits réels d'emphythéoses et superficies..................................................... .................................. .................... | E26: 261 | F26: 0 | H26: 0
B27: J. | C27: Immobilisations en location-financement .............................................. ............................ | E27: 262/3 | F27: 0 | H27: 0
A29: III. | B29: Subsides d'investissements accordés | E29: 25 | F29: =SUM(F30:F33) -> 11458.66 | H29: =SUM(H30:H33) -> 15521.33
B30: A. | C30: Aux entreprises privées ..................................................................................... ..................... | E30: 251 | F30: 0 | H30: 0
B31: B. | C31: Aux ménages, ASBL et autres organismes ............................................... ........................ | E31: 252 | F31: 4666.65 | H31: 5333.32
B32: C. | C32: A l'Autorité supérieure......................................................................................... ..................... | E32: 254 | F32: 0 | H32: 0
B33: D. | C33: Aux autres pouvoirs publics ................................................................ ................................... | E33: 256 | F33: 6792.01 | H33: 10188.01
A35: IV. | B35: Promesses de subsides à recevoir, prêts | E35: 27 | F35: =SUM(F36:F37) -> 1510030.6 | H35: =SUM(H36:H37) -> 1120294.17
B36: A. | C36: Promesse de subsides à recevoir.................................................. ...................................... | E36: 270/4 | F36: 1511850.56 | H36: 1122114.13
B37: B. | C37: Prêts accordés ............................................................................ ............................................. | E37: 275 | F37: -1819.96 | H37: -1819.96
A39: V. | B39: Immobilisations financières | E39: 28 | F39: =SUM(F40:F41) -> 1216519.98 | H39: =SUM(H40:H41) -> 1193401.37
B40: A. | C40: Participations et titres à revenus fixes ................................................................ | E40: 282/5 | F40: 1215844.98 | H40: 1192726.37
B41: B. | C41: Cautionnements versés à plus d'un an ............................................................. | E41: 288 | F41: 675 | H41: 675
A43: ACTIFS CIRCULANTS | E43: 30/58 | F43: =F45+F47+F57+F59 -> 4383958.82 | H43: =H45+H47+H57+H59 -> 4518247.45
A45: VI. | B45: Stocks | E45: 301 | F45: 0 | H45: 0
A47: VII. | B47: Créances à un an au plus | E47: 40/42 | F47: =F48+F49 -> 760392.64 | H47: =H48+H49 -> 1750894.35
B48: A. | C48: Débiteurs ................................................................................................................................................ | E48: 40 | F48: 94559.09 | H48: 93054.32
B49: B. | C49: Autres créances...................................................................................................................................... | E49: 41/42 | F49: =SUM(F50:F55) -> 665833.55 | H49: =SUM(H50:H55) -> 1657840.03
C50: 1. T.V.A. et taxes additionnelles .......................................................................................................... | E50: 411/2 | F50: 282515.94 | H50: 342842.21
C51: 2. Subsides, dons et legs et emprunts ............................................................................................. | E51: 413 | F51: 280934.76 | H51: 1211174.44
C52: 3. Intérêts, dividendes et ristournes .................................................................................................. | E52: 415 | F52: 7373.66 | H52: 6671.8
C53: 4. Créances diverses .......................................................................................................................... | E53: 416/8 | F53: 4528.97 | H53: 4931.91
B54: C. | C54: Récupérations des remboursements d'emprunts......................................................................... | E54: 4251 | F54: 80300.18 | H54: 80219.67
B55: D. | C55: Récupération des prêts........................................................................................................................ | E55: 425/8 | F55: 10180.04 | H55: 12000
A57: VIII. | B57: Opérations pour compte de tiers | E57: 48/A | F57: 0 | H57: 0
A59: IX. | B59: Comptes financiers | E59: 55/58 | F59: =SUM(F60:F62) -> 3623566.18 | H59: =SUM(H60:H62) -> 2767353.1
B60: A. | C60: Placements de trésorerie à un an au plus ...................................................................................... | E60: 553 | F60: 2750597.11 | H60: 2158449.32
B61: B. | C61: Valeurs disponibles .............................................................................................................................. | E61: 55 | F61: 872969.07 | H61: 740187.28
B62: C. | C62: Paiements en cours.............................................................................................................................. | E62: 56/8 | F62: 0 | H62: -131283.5
A64: X. | B64: Comptes de régularisation et d'attente | E64: 49/A | F64: 0 | H64: 0
C66: TOTAL DE L'ACTIF | E66: 21/58 | F66: =F10+F43+F64 -> 38002541.14 | H66: =H10+H43+H64 -> 36669354.23

Sheet Passif
A1: =Coordonnées!A1 -> Synthèse des Comptes | C1: =Coordonnées!D1 -> Administration communale de | D1: =Coordonnées!J1 -> SOMME-LEUZE | G1: =Coordonnées!P1 -> Code INS | I1: =Coordonnées!R1 -> 91120
G2: =Coordonnées!P2 -> Exercice: | I2: =Coordonnées!R2 -> 2022
A3: =Coordonnées!A3 -> Modèle officiel généré par l'application eComptes © SPW Intérieur et Action Sociale | G3: =Coordonnées!P3 -> Version: | I3: =Coordonnées!R3 -> 1
C6: B I L A N | E6: Codes | F6: =I2 -> 2022 | H6: =F6-1 -> 2021
C8: P A S S I F
C10: FONDS PROPRES | E10: 10/16 | F10: =F12+F14+F16+F21+F25+F31 -> 29681190.56 | H10: =H12+H14+H16+H21+H25+H31 -> 27650382.63
A12: I'. | B12: Capital | E12: 10 | F12: 6918449.2 | H12: 6918449.2
A14: II'. | B14: Résultats capitalisés | E14: 12 | F14: 8354935.24 | H14: 7673366.97
A16: III'. | B16: Résultats reportés | E16: 13 | F16: =SUM(F17:F19) -> 1504397.6 | H16: =SUM(H17:H19) -> 2081568.55
B17: A'. | C17: Des exercices antérieurs............................................................................................... | E17: 1301 | F17: -65112.24 | H17: 681568.27
B18: B'. | C18: De l'exercice précédent............................................................................................... | E18: 1302 | F18: 1465112.52 | H18: -65112.24
B19: C'. | C19: Du dernier exercice..................................................................................................... | E19: 1303 | F19: 104397.32 | H19: 1465112.52
A21: IV'. | B21: Réserves | E21: 14 | F21: =SUM(F22:F23) -> 1706578.94 | H21: =SUM(H22:H23) -> 711596.13
B22: A'. | C22: Fonds de réserve ordinaire....................................................................................... | E22: 14104 | F22: 577601.59 | H22: 577601.59
B23: B'. | C23: Fonds de réserve extraordinaire................................................................................. | E23: 14105 | F23: 1128977.35 | H23: 133994.54
A25: V'. | B25: Subsides d'investissement, dons et legs reçus | E25: 15 | F25: =SUM(F26:F29) -> 8770816.18 | H25: =SUM(H26:H29) -> 8219388.38
B26: A'. | C26: Des entreprises privées ............................................................................................. | E26: 151 | F26: 44959.17 | H26: 0
B27: B'. | C27: Des ménages, des A.S.B.L. et autres organismes ....................................................... | E27: 152 | F27: 54171.74 | H27: 54477.88
B28: C'. | C28: De l'Autorité supérieure .............................................................................................. | E28: 154 | F28: 8284150.43 | H28: 7739281
B29: D'. | C29: Des autres pouvoirs publics ..................................................................................... | E29: 156 | F29: 387534.84 | H29: 425629.5
A31: VI'. | B31: Provisions pour risques et charges | E31: 16 | F31: 2426013.4 | H31: 2046013.4
A33: DETTES | E33: 17/49 | F33: =F35+F44+F53 -> 8190128.98 | H33: =H35+H44+H53 -> 8732237.48
A35: VII'. | B35: Dettes à plus d'un an | E35: 17 | F35: =SUM(F36:F42) -> 6609804.31 | H35: =SUM(H36:H42) -> 7462575.22
B36: A'. | C36: Emprunts à charge de la commune ...................................................... | E36: 171/5 | F36: 5927482.31 | H36: 6716004.98
B37: B'. | C37: Emprunts à charge de l'Autorité supérieure............................................ | E37: 1714 | F37: 682322 | H37: 746570.24
B38: C'. | C38: Emprunts à charge de tiers.................................................................. | E38: 172 | F38: 0 | H38: 0
B39: D'. | C39: Dettes de location-financement............................................................ | E39: 174 | F39: 0 | H39: 0
B40: E'. | C40: Emprunts publics ............................................................................... | E40: 176 | F40: 0 | H40: 0
B41: F'. | C41: Dettes diverses à plus d'un an............................................................. | E41: 177 | F41: 0 | H41: 0
B42: G'. | C42: Garanties reçues à plus d'un an............................................................ | E42: 178 | F42: 0 | H42: 0
A44: VIII'. | B44: Dettes à un an au plus | E44: 43/6 | F44: =F45+SUM(F49:F51) -> 1569671.06 | H44: =H45+SUM(H49:H51) -> 1269433.65
B45: A'. | C45: Dettes financières................................................................................ | E45: 43 | F45: =SUM(F46:F48) -> 993051.41 | H45: =SUM(H46:H48) -> 923714.96
C46: 1'. Remboursements d'emprunts .......................................................... | E46: 435 | F46: 959999.66 | H46: 897698.2
C47: 2'. Charges financières des emprunts ................................................... | E47: 436 | F47: 33051.75 | H47: 26016.76
C48: 3'. Dettes sur comptes-courants........................................................... | E48: 433 | F48: 0 | H48: 0
B49: B'. | C49: Dettes commerciales .......................................................................... | E49: 44 | F49: 322139.58 | H49: 284816.79
B50: C'. | C50: Dettes fiscales, salariales et sociales ................................................................................................ | E50: 45 | F50: 237450.47 | H50: 53422.67
B51: D'. | C51: Dettes diverses .................................................................................. | E51: 464/7 | F51: 17029.6 | H51: 7479.23
A53: IX'. | B53: Opérations pour compte de tiers | E53: 48/P | F53: 10653.61 | H53: 228.61
A55: X'. | B55: Comptes de régularisation et d'attente | E55: 49/P | F55: 131221.6 | H55: 286734.12
C57: TOTAL DU PASSIF | E57: 10/49 | F57: =F10+F33+F55 -> 38002541.14 | H57: =H10+H33+H55 -> 36669354.23

Sheet Charges
A1: =Coordonnées!A1 -> Synthèse des Comptes | C1: =Coordonnées!D1 -> Administration communale de | D1: =Coordonnées!J1 -> SOMME-LEUZE | G1: =Coordonnées!P1 -> Code INS | I1: =Coordonnées!R1 -> 91120
G2: =Coordonnées!P2 -> Exercice: | I2: =Coordonnées!R2 -> 2022
A3: =Coordonnées!A3 -> Modèle officiel généré par l'application eComptes © SPW Intérieur et Action Sociale | G3: =Coordonnées!P3 -> Version: | I3: =Coordonnées!R3 -> 1
E5: Codes | F5: =I2 -> 2022 | H5: =F5-1 -> 2021
C6: COMPTE DE RESULTATS
A8: I. | B8: Charges courantes
B9: A. | C9: Achats de matières .............................................................................................. | E9: 60 | F9: 911488.27 | H9: 800280.97
B10: B. | C10: Services et biens d'exploitation ......................................................................... | E10: 61 | F10: 817443.32 | H10: 734260.01
B11: C. | C11: Frais de personnel .............................................................................................. | E11: 62 | F11: 3404821.7 | H11: 3288054.73
B12: D. | C12: Subsides d'exploitation accordés ................................................................... | E12: 63 | F12: 1770374.06 | H12: 1741306.99
B13: E. | C13: Remboursements des emprunts ................................................................... | E13: 64 | F13: 793723.91 | H13: 736225.69
B14: F. | C14: Charges financières | E14: 65 | F14: =SUM(F15:F17) -> 136513.75 | H14: =SUM(H15:H17) -> 129055.86
C15: a. Charges financières des emprunts ........................................................... | E15: 651/6 | F15: 136273.54 | H15: 128786.1
C16: b. Charges financières diverses .................................................................... | E16: 657 | F16: 0 | H16: 88.4
C17: c. Frais de la gestion financière ..................................................................... | E17: 658 | F17: 240.21 | H17: 181.36
A19: II. | B19: Sous-total (charges courantes) | E19: 60/65 | F19: =SUM(F9:F14) -> 7834365.01 | H19: =SUM(H9:H14) -> 7429184.25
A21: III. | B21: Boni courant (II' - II) | F21: =IF(Charges!F19<Produits!F19,Produits!F19-Charges!F19,0) -> 427274.74 | H21: =IF(Charges!H19<Produits!H19,Produits!H19-Charges!H19,0) -> 0
A23: IV. | B23: Charges résultant de la variation normale des valeurs de bilan, redressements et provisions
B25: A. | C25: Dotations aux amortissements ......................................................................... | E25: 660 | F25: 1484610.46 | H25: 1084879.12
B26: B. | C26: Réductions annuelles de valeurs ..................................................................... | E26: 661 | F26: 0 | H26: 0
B27: C. | C27: Réductions et variations des stocks ............................................................... | E27: 662/4 | F27: 0 | H27: 0
B28: D. | C28: Redressement des récupérations des
C29: remboursements d'emprunts ........................................................................... | E29: 665 | F29: 64183.72 | H29: 64120.12
B30: E. | C30: Provisions pour risques et charges ............................................................... | E30: 666 | F30: 380000 | H30: 0
B31: F. | C31: Dotations aux amortissements des subsides
C32: d'investissement accordés ............................................................................... | E32: 667 | F32: 4062.67 | H32: 4062.66
A34: V. | B34: Sous-total (charges non décaissées) | E34: 66 | F34: =SUM(F25:F32) -> 1932856.85 | H34: =SUM(H25:H32) -> 1153061.9
A36: VI. | B36: Total des charges d'exploitation (II + V) | E36: 60/66 | F36: =F19+F34 -> 9767221.86 | H36: =H19+H34 -> 8582246.15
A38: VII. | B38: Boni d'exploitation (VI' - VI) | F38: =IF(Charges!F36<Produits!F33,Produits!F33-Charges!F36,0) -> 954506.02 | H38: =IF(Charges!H36<Produits!H33,Produits!H33-Charges!H36,0) -> 749098.92
A40: VIII. | B40: Charges exceptionnelles
B41: A. | C41: Du service ordinaire ............................................................................................ | E41: 671 | F41: 6260.83 | H41: 4782.46
B42: B. | C42: Du service extraordinaire .................................................................................. | E42: 672 | F42: 1819.96 | H42: 5564.2
B43: C. | C43: Charges exceptionnelles non budgétées ..................................................... | E43: 673 | F43: 0 | H43: 0
C44: Sous-total (charges exceptionnelles) | E44: 67 | F44: =SUM(F41:F43) -> 8080.79 | H44: =SUM(H41:H43) -> 10346.66
A46: IX. | B46: Dotations aux réserves
B47: A. | C47: Du service ordinaire ......................................................................................... | E47: 685 | F47: 0 | H47: 0
B48: B. | C48: Du service extraordinaire ................................................................................ | E48: 686 | F48: 1073436.8 | H48: 75075.97
C49: Sous-total des dotations aux réserves | E49: 68 | F49: =SUM(F47:F48) -> 1073436.8 | H49: =SUM(H47:H48) -> 75075.97
A51: X. | B51: Total des charges exceptionnelles et des dotations aux réserves (VIII + IX)
E52: 67/68 | F52: =F44+F49 -> 1081517.59 | H52: =H44+H49 -> 85422.63
A54: XI. | B54: Boni exceptionnel (X' - X) | F54: =IF(Charges!F52<Produits!F51,Produits!F51-Charges!F52,0) -> 0 | H54: =IF(Charges!H52<Produits!H51,Produits!H51-Charges!H52,0) -> 716013.6
A56: XII. | B56: Total des charges (VI + X) | F56: =F36+F52 -> 10848739.45 | H56: =H36+H52 -> 8667668.78
A58: XIII. | B58: Boni de l'exercice (XII' - XII) | F58: =IF(Charges!F56<Produits!F55,Produits!F55-Charges!F56,0) -> 104397.32 | H58: =IF(Charges!H56<Produits!H55,Produits!H55-Charges!H56,0) -> 1465112.52
A60: XIV. | B60: Affectation des bonis (XIII)
B61: A. | C61: Boni d'exploitation à reporter au bilan ............................................................ | E61: 69201 | F61: 954506.02 | H61: 749098.92
B62: B. | C62: Boni exceptionnel à reporter au bilan ............................................................. | E62: 69202 | F62: 0 | H62: 716013.6
C63: Sous-total (affectation des résultats) | E63: 69 | F63: =SUM(F61:F62) -> 954506.02 | H63: =SUM(H61:H62) -> 1465112.52
A65: XV. | B65: Contrôle de balance (XII + XIV = XV') | F65: =F56+F63 -> 11803245.47 | H65: =H56+H63 -> 10132781.3

Sheet Produits
A1: =Coordonnées!A1 -> Synthèse des Comptes | C1: =Coordonnées!D1 -> Administration communale de | D1: =Coordonnées!J1 -> SOMME-LEUZE | G1: =Coordonnées!P1 -> Code INS | I1: =Coordonnées!R1 -> 91120
G2: =Coordonnées!P2 -> Exercice: | I2: =Coordonnées!R2 -> 2022
A3: =Coordonnées!A3 -> Modèle officiel généré par l'application eComptes © SPW Intérieur et Action Sociale | G3: =Coordonnées!P3 -> Version: | I3: =Coordonnées!R3 -> 1
E5: Codes | F5: =I2 -> 2022 | H5: =F5-1 -> 2021
A6: COMPTE DE RESULTATS
A8: I'. | B8: Produits courants
B9: A'. | C9: Produits de la fiscalité .......................................................................... | E9: 70 | F9: 4022686.75 | H9: 3525760.24
B10: B'. | C10: Produits d'exploitation ......................................................................... | E10: 71 | F10: 491577.97 | H10: 431133.56
B11: C'. | C11: Subsides d'exploitation reçus et récupérations de
C12: charges de personnel ........................................................................... | E12: 72/73 | F12: 3621893.54 | H12: 3264363.98
B13: D'. | C13: Récupération des remboursements d'emprunts ....................................... | E13: 74 | F13: 64183.72 | H13: 64120.12
B14: E'. | C14: Produits financiers | E14: 75 | F14: =SUM(F16:F17) -> 61297.77 | H14: =SUM(H16:H17) -> 82035.38
C15: a'. Récupération des charges financières des
C16: emprunts et des prêts accordés ...................................................................... | E16: 751/5 | F16: 28814.63 | H16: 30398.9
C17: b' Produits financiers divers ................................................................ | E17: 754/7 | F17: 32483.14 | H17: 51636.48
A19: II'. | B19: Sous-total (produits courants) | E19: 70/75 | F19: =SUM(F9:F14) -> 8261639.75 | H19: =SUM(H9:H14) -> 7367413.28
A21: III'. | B21: Mali courant (II - II') | F21: =IF(Charges!F19>Produits!F19,Charges!F19-Produits!F19,0) -> 0 | H21: =IF(Charges!H19>Produits!H19,Charges!H19-Produits!H19,0) -> 61770.97
A23: IV'. | B23: Produits résultant de la variation normale des valeurs de bilan, redressements, travaux internes
B25: A'. | C25: Plus-values annuelles .......................................................................... | E25: 761 | F25: 1210883.43 | H25: 677380.61
B26: B'. | C26: Variations des stocks .......................................................................... | E26: 764 | F26: 0 | H26: 0
B27: C'. | C27: Redressement des cptes des remb. des emprunts ........... | E27: 765 | F27: 793723.91 | H27: 736225.69
B28: D'. | C28: Réductions des subsides d'investissement, des dons et legs obtenus .................................................................. | E28: 767 | F28: 455480.79 | H28: 550325.49
B29: E'. | C29: Travaux internes passés à l'immobilisé ................................................... | E29: 769 | F29: 0 | H29: 0
A31: V'. | B31: Sous-total (produits non encaissés) | E31: 76 | F31: =SUM(F25:F29) -> 2460088.13 | H31: =SUM(H25:H29) -> 1963931.79
A33: VI'. | B33: Total des produits d'exploitation (II' + V') | E33: 70/76 | F33: =F19+F31 -> 10721727.88 | H33: =H19+H31 -> 9331345.07
A35: VII'. | B35: Mali d'exploitation (VI - VI') | F35: =IF(Charges!F36>Produits!F33,Charges!F36-Produits!F33,0) -> 0 | H35: =IF(Charges!H36>Produits!H33,Charges!H36-Produits!H33,0) -> 0
A37: VIII'. | B37: Produits exceptionnels
B38: A'. | C38: Du service ordinaire ............................................................................. | E38: 771 | F38: 59434.48 | H38: 44073.09
B39: B'. | C39: Du service extraordinaire ....................................................................... | E39: 772 | F39: 93520.42 | H39: 14838.97
B40: C'. | C40: Produits exceptionnels non budgétés ................................................ | E40: 773 | F40: 0 | H40: 5564.2
C42: Sous-total (produits exceptionnels) | E42: 77 | F42: =SUM(F38:F40) -> 152954.9 | H42: =SUM(H38:H40) -> 64476.26
A44: IX'. | B44: Prélèvements sur les réserves
B45: A'. | C45: Du service ordinaire ............................................................................. | E45: 785 | F45: 0 | H45: 0
B46: B'. | C46: Du service extraordinaire ....................................................................... | E46: 786 | F46: 78453.99 | H46: 736959.97
C48: Sous-total des prélèvements sur réserves | E48: 78 | F48: =SUM(F45:F46) -> 78453.99 | H48: =SUM(H45:H46) -> 736959.97
A50: X'. | B50: Total des produits exceptionnels et des
B51: prélèvements sur réserves (VIII' + IX') | E51: 77/78 | F51: =F42+F48 -> 231408.89 | H51: =H42+H48 -> 801436.23
A53: XI'. | B53: Mali exceptionnel (X - X') | F53: =IF(Charges!F52>Produits!F51,Charges!F52-Produits!F51,0) -> 850108.7 | H53: =IF(Charges!H52>Produits!H51,Charges!H52-Produits!H51,0) -> 0
A55: XII'. | B55: Total des produits (VI' + X') | F55: =F33+F51 -> 10953136.77 | H55: =H33+H51 -> 10132781.3
A57: XIII'. | B57: Mali de l'exercice (XII - XII') | F57: =IF(Charges!F56>Produits!F55,Charges!F56-Produits!F55,0) -> 0 | H57: =IF(Charges!H56>Produits!H55,Charges!H56-Produits!H55,0) -> 0
A59: XIV'. | B59: Affectation des malis (XIII')
B60: A'. | C60: Mali d'exploitation à reporter au bilan ..................................................... | E60: 79201 | F60: 0 | H60: 0
B61: B'. | C61: Mali exceptionnel à reporter au bilan ...................................................... | E61: 79202 | F61: 850108.7 | H61: 0
C63: Sous-total (affectation des résultats) | E63: 79 | F63: =SUM(F60:F61) -> 850108.7 | H63: =SUM(H60:H61) -> 0
A65: XV'. | B65: Contrôle de balance (XII' + XIV' = XV) | F65: =F55+F63 -> 11803245.47 | H65: =H55+H63 -> 10132781.3

Sheet Commentaires
A1: =Coordonnées!A1 -> Synthèse des Comptes | D1: =Coordonnées!D1 -> Administration communale de | J1: =Coordonnées!J1 -> SOMME-LEUZE | P1: =Coordonnées!P1 -> Code INS | R1: =Coordonnées!R1 -> 91120
P2: =Coordonnées!P2 -> Exercice: | R2: =Coordonnées!R2 -> 2022
A3: =Coordonnées!A3 -> Modèle officiel généré par l'application eComptes © SPW Intérieur et Action Sociale | P3: =Coordonnées!P3 -> Version: | R3: =Coordonnées!R3 -> 1
A6: Commentaires

Sheet Glossaire
A1: =Coordonnées!A1 -> Synthèse des Comptes | D1: =Coordonnées!D1 -> Administration communale de | J1: =Coordonnées!J1 -> SOMME-LEUZE | P1: =Coordonnées!P1 -> Code INS | R1: =Coordonnées!R1 -> 91120
P2: =Coordonnées!P2 -> Exercice: | R2: =Coordonnées!R2 -> 2022
A3: =Coordonnées!A3 -> Modèle officiel généré par l'application eComptes © SPW Intérieur et Action Sociale | P3: =Coordonnées!P3 -> Version: | R3: =Coordonnées!R3 -> 1
A6: Glossaire
A8: Termes | F8: Définitions:
A9: Exercice propre | F9: L'exercice du document allant du 1er janvier au 31 décembre
A10: Exercices antérieurs | F10: Les opérations antérieures à l'exercice propre
A11: Résultat global | F11: Le boni ou le mali de l'exercice propre cumulé avec celui des exercices antérieurs
A12: Dépenses de transfert | F12: Dépenses effectuées à destination de tiers à la commune (d'autres institutions, organismes, ménages ..)
A13: Recettes de transfert | F13: Recettes en provenance de tiers ( subsides, taxes, … )
A14: Recettes de prestation | F14: Recettes découlant de services payants rendus par la commune, de locations, de droits d'entrée …
A15: Dépenses de prélèvements | F15: Sommes prélevées sur les excédents budgétaires par la commune pour alimenter des fonds de réserves ordinaires ou extraordinaires (pour financer des dépenses d'investissement sur fonds propres ) ou des provisions ( pour faire face à des charges futures importantes )
A16: Recettes de prélèvements | F16: Utilisation des fonds de réserve et des provisions (constitués au moyen des dépenses de prélèvement)
A17: Ordinaire | F17: Les recettes et dépenses nécessaires au fonctionnement de la commune (taxes, subventions , salaires,électricité,fournitures,…)
A18: Extraordinaire | F18: Les dépenses et leurs moyens de financement afférentes aux investissements ( travaux importants, rénovations, achat de matériel et de véhicules etc … )
